bitfinex/quotes_BTCUSD_20250102
["timestamp","ask_amount","ask_price","bid_price","bid_amount"]
[1735829429319,0.10398632,97219.0,97206.0,0.411494]
[1735829429535,0.10398632,97219.0,97204.0,0.097246]
[1735829429740,0.10398632,97219.0,97205.0,0.09948876]
[1735829429950,0.10398632,97219.0,97206.0,0.205748]
[1735829430160,0.10398632,97219.0,97205.0,0.09948876]
[1735829430161,0.01610833,97216.0,97198.0,0.00049123]
[1735829430369,0.205738,97211.0,97198.0,0.00049123]
[1735829430633,0.14908632,97210.0,97198.0,0.00049123]
[1735829431308,0.20576,97201.0,97198.0,0.00049123]
[1735829431558,0.10398632,97200.0,97198.0,0.00049123]
[1735829431764,0.11118084,97200.0,97198.0,0.00049123]
[1735829431979,0.12729284,97200.0,97198.0,0.00049123]
[1735829432856,0.205763,97199.0,97198.0,0.00049123]
[1735829433099,0.31694852,97199.0,97198.0,0.00049123]
[1735829433933,0.11118552,97199.0,97198.0,0.00049123]
[1735829434140,0.11118552,97199.0,97148.0,0.02016485]
[1735829434141,0.002754,97194.0,97126.0,0.542]
[1735829434492,0.205818,97173.0,97155.0,0.205855]
[1735829434703,0.10398632,97172.0,97164.0,0.205837]
[1735829434920,0.00714802,97172.0,97171.0,0.09948876]
[1735829435130,0.00714802,97172.0,97171.0,0.30531076]
[1735829435303,0.0822,97190.0,97179.0,0.205805]
[1735829435564,0.10398632,97189.0,97179.0,0.205805]
[1735829435795,0.11113341,97189.0,97176.0,0.20581]
[1735829436004,0.11113341,97189.0,97181.0,0.205801]
[1735829436420,0.11113341,97189.0,97174.0,0.205816]
[1735829436632,0.11113341,97189.0,97152.0,0.205861]
[1735829436633,0.205805,97179.0,97165.0,0.205833]
[1735829436856,0.10398632,97178.0,97158.0,0.000171]
[1735829437050,0.205814,97175.0,97158.0,0.000171]
[1735829437264,0.10398632,97174.0,97169.0,0.205826]
[1735829437470,0.11107928,97174.0,97160.0,0.097246]
[1735829437856,0.0161155,97173.0,97160.0,0.097246]
[1735829438063,0.10398632,97172.0,97169.0,0.205826]
[1735829438476,0.01611494,97178.0,97175.0,0.097246]
[1735829438693,0.0797,97210.0,97177.0,0.19673476]
[1735829438904,0.13714062,97220.0,97198.0,0.19673476]
[1735829439327,0.0797,97227.0,97198.0,0.19673476]
[1735829439765,0.205736,97212.0,97195.0,0.411542]
[1735829439983,0.205736,97212.0,97198.0,0.09948876]
[1735829440190,0.205717,97221.0,97198.0,0.19673476]
[1735829440402,0.01660162,97199.0,97198.0,0.19673476]
[1735829440634,0.01646787,97199.0,97198.0,0.09948876]
[1735829440875,0.01646787,97199.0,97195.0,0.411542]
[1735829440876,0.01646787,97199.0,97195.0,0.205771]
[1735829441100,0.01646787,97199.0,97198.0,0.09948876]
[1735829441306,0.01646787,97199.0,97198.0,0.19673476]
[1735829441755,8.4e-07,97199.0,97198.0,0.32372108]
[1735829441982,8.4e-07,97199.0,97198.0,0.57372108]
[1735829442199,0.01610803,97225.0,97224.0,0.40244476]
[1735829442405,0.0481,97255.0,97252.0,0.20565]
[1735829442637,0.10398632,97254.0,97247.0,0.205661]
[1735829442866,0.11353023,97254.0,97251.0,0.205651]
[1735829443079,0.11353023,97254.0,97248.0,0.205657]
[1735829443304,0.11353023,97254.0,97246.0,0.08886176]
[1735829443516,0.11113315,97254.0,97251.0,0.205651]
[1735829443743,0.11113315,97254.0,97251.0,0.411304]
[1735829443744,0.00714683,97254.0,97251.0,0.411304]
[1735829443965,0.10398632,97253.0,97251.0,0.00014731]
[1735829444399,0.00714198,97252.0,97251.0,0.00014731]
[1735829444617,0.1111283,97252.0,97251.0,0.00014731]
[1735829444772,0.1111283,97252.0,97251.0,0.20580031]
[1735829444987,0.00714198,97252.0,97251.0,0.20580031]
[1735829445194,0.00714198,97252.0,97251.0,0.00014731]
[1735829445195,0.10398632,97252.0,97251.0,0.00014731]
[1735829445419,0.31676291,97252.0,97251.0,0.00014731]
[1735829445573,0.58781773,97252.0,97251.0,0.00014731]
[1735829445782,0.002754,97242.0,97216.0,0.08886176]
[1735829445990,0.10398632,97231.0,97210.0,0.00014748]
[1735829446197,0.10398632,97222.0,97210.0,0.00014748]
[1735829446405,0.205731,97215.0,97210.0,0.00014748]
[1735829446625,0.11118686,97214.0,97210.0,0.00014748]
[1735829446869,0.30971932,97213.0,97210.0,0.00014748]
[1735829447068,0.11111727,97213.0,97210.0,0.00014748]
[1735829447494,0.205735,97212.0,97210.0,0.00014748]
[1735829447699,0.10398632,97211.0,97210.0,0.00014748]
[1735829447910,0.11116588,97211.0,97210.0,0.00014748]
[1735829448346,0.19521988,97211.0,97210.0,0.00014748]
[1735829448581,0.34521988,97211.0,97210.0,0.00014748]
[1735829448806,0.252969,97196.0,97195.0,0.0001708]
[1735829449018,0.205807,97179.0,97159.0,0.205847]
[1735829449267,0.11116387,97178.0,97168.0,0.00066259]
[1735829450084,0.20581,97177.0,97168.0,0.00066259]
[1735829450292,0.10398632,97176.0,97168.0,0.00066259]
[1735829450512,0.11113563,97176.0,97168.0,0.00066259]
[1735829450729,0.205826,97170.0,97168.0,0.00066259]
[1735829450933,0.11665063,97169.0,97168.0,0.00066259]
[1735829451164,0.11109379,97169.0,97168.0,0.00066259]
[1735829452006,0.26109379,97169.0,97168.0,0.00066259]
[1735829453042,0.31004779,97169.0,97168.0,0.00066259]
[1735829453252,0.32616743,97169.0,97168.0,0.00066259]
[1735829453372,0.31004779,97169.0,97168.0,0.00066259]
[1735829453580,0.31004779,97169.0,97118.0,0.205934]
[1735829453581,0.002754,97151.0,97118.0,0.205934]
[1735829453807,0.30987832,97138.0,97137.0,0.00031865]
[1735829453982,0.11104802,97138.0,97137.0,0.00031865]
[1735829455019,0.12717001,97138.0,97137.0,0.00031865]
[1735829455272,0.12938015,97138.0,97137.0,0.00031865]
[1735829455788,0.14367384,97138.0,97137.0,0.00031865]
[1735829455997,0.12938015,97138.0,97137.0,0.00031865]
[1735829457073,0.38615393,97138.0,97137.0,0.00031865]
[1735829457287,0.47483817,97138.0,97137.0,0.00031865]
[1735829457508,0.47483817,97138.0,97111.0,0.0002]
[1735829457509,0.205947,97112.0,97111.0,0.0002]
[1735829457720,0.30993332,97112.0,97111.0,0.00034772]
[1735829457947,0.33436601,97112.0,97111.0,0.00034772]
[1735829458168,0.48436601,97112.0,97111.0,0.00034772]
[1735829458380,0.48540852,97112.0,97111.0,0.00034772]
[1735829458586,0.56200852,97112.0,97111.0,0.00034772]
[1735829458809,0.62570076,97112.0,97111.0,0.00034772]
[1735829459017,0.15,97111.0,97079.0,0.097246]
[1735829459231,0.15,97111.0,97076.0,0.206023]
[1735829459232,0.45995732,97101.0,97100.0,0.00031877]
[1735829459658,0.48811804,97101.0,97100.0,0.00031877]
[1735829459848,0.57923487,97101.0,97100.0,0.00031877]
[1735829460114,0.5893306,97101.0,97100.0,0.00031877]
[1735829460355,0.58576367,97101.0,97100.0,0.00031877]
[1735829460565,0.59690191,97101.0,97100.0,0.00031877]
[1735829460794,0.01389224,97099.0,97075.0,0.000171]
[1735829460975,0.34866448,97099.0,97098.0,0.00031903]
[1735829461221,0.37370825,97099.0,97098.0,0.00031903]
[1735829461649,0.26308741,97099.0,97098.0,0.00031903]
[1735829462030,0.11308741,97099.0,97098.0,0.00031903]
[1735829462505,0.12697965,97099.0,97098.0,0.00031903]
[1735829462708,0.12697965,97099.0,97070.0,0.000171]
[1735829462709,0.01113824,97098.0,97070.0,0.000171]
[1735829462917,0.45997432,97093.0,97092.0,0.00031913]
[1735829463126,0.55037123,97093.0,97092.0,0.00031913]
[1735829463337,0.5807995,97093.0,97092.0,0.00031913]
[1735829463516,0.36991624,97076.0,97070.0,0.000171]
[1735829463757,0.01389224,97072.0,97070.0,0.000171]
[1735829463931,0.36994324,97063.0,97062.0,0.000171]
[1735829464184,0.47392956,97063.0,97062.0,0.00066153]
[1735829464369,0.49426628,97063.0,97062.0,0.00066153]
[1735829464781,0.48352407,97063.0,97062.0,0.00066153]
[1735829465370,0.49741631,97063.0,97062.0,0.00066153]
[1735829465588,0.5104036,97063.0,97062.0,0.00066153]
[1735829465790,0.5076496,97063.0,97062.0,0.00066153]
[1735829466003,0.5104036,97063.0,97062.0,0.00066153]
[1735829466225,0.60265226,97063.0,97062.0,0.00066153]
[1735829466433,0.60265226,97063.0,97058.0,0.0001712]
[1735829466434,0.03689224,97059.0,97058.0,0.0001712]
[1735829466649,0.33767856,97059.0,97058.0,0.0001712]
[1735829466850,0.36997724,97047.0,97038.0,0.0001712]
[1735829467051,0.55217678,97047.0,97038.0,0.0001712]
[1735829467258,0.48419685,97047.0,97038.0,0.0001712]
[1735829467459,0.48122465,97047.0,97038.0,0.0001712]
[1735829467701,0.4834727,97047.0,97038.0,0.0001712]
[1735829468131,0.1273877,97047.0,97038.0,0.0001712]
[1735829468341,0.1273877,97047.0,97046.0,0.3035042]
[1735829468342,0.00726109,97047.0,97046.0,0.3035042]
[1735829468779,0.00049141,97063.0,97062.0,0.303299]
[1735829468966,0.10447773,97063.0,97055.0,0.08886176]
[1735829469172,0.10398632,97062.0,97055.0,0.08886176]
[1735829469387,0.10398632,97062.0,97046.0,0.0001712]
[1735829469388,0.10995919,97062.0,97049.0,0.097246]
[1735829469563,0.10995919,97062.0,97050.0,0.206079]
[1735829470003,0.10995919,97062.0,97046.0,0.0001712]
[1735829470220,0.10995919,97062.0,97047.0,0.206085]
[1735829470443,0.10995919,97062.0,97046.0,0.0001712]
[1735829470444,0.15,97054.0,97046.0,0.0001712]
[1735829470662,0.206085,97047.0,97046.0,0.0001712]
[1735829470885,0.31007132,97047.0,97046.0,0.0001712]
[1735829471324,0.10992273,97047.0,97046.0,0.0001712]
[1735829471984,0.10398632,97047.0,97046.0,0.0001712]
[1735829472191,0.10992268,97047.0,97046.0,0.0001712]
[1735829473032,0.25992268,97047.0,97046.0,0.0001712]
[1735829473484,0.31600768,97047.0,97046.0,0.0001712]
[1735829474328,0.10992268,97047.0,97046.0,0.0001712]
[1735829476797,0.10992268,97047.0,97046.0,0.0974172]
[1735829476798,0.00593636,97047.0,97046.0,0.0974172]
[1735829477183,0.20604,97069.0,97050.0,0.08886176]
[1735829477371,0.20604,97069.0,97051.0,0.29493876]
[1735829477372,0.10398632,97062.0,97051.0,0.29493876]
[1735829477580,0.10991563,97062.0,97051.0,0.29493876]
[1735829477794,0.10991563,97062.0,97061.0,0.097246]
[1735829477795,0.00592931,97062.0,97061.0,0.097246]
[1735829478002,0.10991563,97062.0,97055.0,0.097246]
[1735829478214,0.10398632,97061.0,97051.0,0.08886176]
[1735829478421,0.10398632,97056.0,97046.0,0.0001712]
[1735829478833,0.00597521,97055.0,97046.0,0.0001712]
[1735829479041,0.10398632,97054.0,97046.0,0.0001712]
[1735829479268,0.10398632,97054.0,97051.0,0.097246]
[1735829479475,0.00597354,97053.0,97052.0,0.097246]
[1735829479716,0.10995986,97053.0,97046.0,0.0001712]
[1735829479918,0.206039,97069.0,97053.0,0.097246]
[1735829480122,0.10398632,97062.0,97053.0,0.097246]
[1735829480332,0.10398632,97062.0,97053.0,0.303318]
[1735829480531,0.01113824,97096.0,97062.0,0.303299]
[1735829480738,0.076,97098.0,97062.0,0.41516076]
[1735829480954,0.000171,97099.0,97062.0,0.66516076]
[1735829481169,0.000171,97099.0,97098.0,0.205977]
[1735829481371,0.000171,97099.0,97094.0,0.08886176]
[1735829481579,0.10398632,97098.0,97094.0,0.08886176]
[1735829481787,0.000171,97099.0,97098.0,0.097246]
[1735829481984,0.00608108,97097.0,97094.0,0.08886176]
[1735829482189,0.10398632,97096.0,97094.0,0.08886176]
[1735829482431,0.11006578,97096.0,97094.0,0.0890098]
[1735829482672,0.10398632,97096.0,97094.0,0.00014804]
[1735829482906,0.00612565,97095.0,97094.0,0.00014804]
[1735829483149,0.11011197,97095.0,97094.0,0.00014804]
[1735829484137,0.12624123,97095.0,97094.0,0.00014804]
[1735829486023,0.27624123,97095.0,97094.0,0.00014804]
[1735829486915,0.29013347,97095.0,97094.0,0.00014804]
[1735829487084,0.41733347,97095.0,97094.0,0.00014804]
[1735829487747,0.15,97073.0,97051.0,8.55e-05]
[1735829487952,0.15,97071.0,97051.0,0.00057691]
[1735829488192,0.15,97069.0,97051.0,0.00057691]
[1735829488394,0.10398632,97068.0,97051.0,0.00057691]
[1735829488722,0.11005389,97068.0,97063.0,0.097246]
[1735829488931,0.11005389,97068.0,97056.0,0.08886176]
[1735829489121,0.00606757,97068.0,97067.0,0.097246]
[1735829489258,0.11005389,97068.0,97066.0,0.08886176]
[1735829489487,0.05110149,97161.0,97051.0,0.00057691]
[1735829489488,0.0802,97095.0,97076.0,0.08886176]
[1735829489671,0.11008881,97094.0,97089.0,0.303241]
[1735829489879,0.11008881,97094.0,97089.0,0.097246]
[1735829490108,0.11008881,97094.0,97084.0,0.097246]
[1735829490283,0.10398632,97094.0,97084.0,0.097246]
[1735829490520,0.10398632,97094.0,97089.0,0.097246]
[1735829490731,0.00610565,97093.0,97089.0,0.097246]
[1735829490922,0.10398632,97092.0,97089.0,0.09739411]
[1735829491364,0.00610241,97091.0,97089.0,0.09739411]
[1735829491840,0.00610241,97091.0,97090.0,0.41510176]
[1735829492346,0.000171,97099.0,97098.0,0.41508476]
[1735829492559,0.000171,97099.0,97098.0,0.66907108]
[1735829492769,0.000171,97099.0,97098.0,0.56508476]
[1735829493820,0.000171,97099.0,97098.0,0.66907108]
[1735829494025,0.000171,97099.0,97098.0,0.76907108]
[1735829494647,0.01612395,97136.0,97128.0,0.097246]
[1735829494863,0.10398632,97135.0,97128.0,0.097246]
[1735829495065,0.3150795,97135.0,97126.0,0.097246]
[1735829495272,0.1091795,97135.0,97126.0,0.097246]
[1735829495677,0.10398632,97135.0,97126.0,0.097246]
[1735829495831,0.01612395,97136.0,97135.0,0.097246]
[1735829496054,0.205836,97165.0,97142.0,0.303129]
[1735829496243,0.12010744,97152.0,97142.0,0.097246]
[1735829496602,0.00521798,97151.0,97149.0,0.097246]
[1735829496840,0.00521798,97151.0,97150.0,0.18610776]
[1735829497042,0.00521798,97151.0,97150.0,0.49137476]
[1735829497247,0.01611937,97179.0,97178.0,0.097246]
[1735829497458,0.09157866,97194.0,97188.0,0.29464776]
[1735829497654,0.10398632,97193.0,97188.0,0.08886176]
[1735829497866,0.10398632,97193.0,97178.0,0.303053]
[1735829497867,0.10398632,97193.0,97184.0,0.08886176]
[1735829498088,0.10398632,97193.0,97188.0,0.08886176]
[1735829498293,0.10398632,97193.0,97185.0,0.08886176]
[1735829498475,0.00460937,97192.0,97188.0,0.08886176]
[1735829498652,0.10398632,97191.0,97188.0,0.08886176]
[1735829499193,0.00460614,97190.0,97186.0,0.08886176]
[1735829499423,0.10398632,97189.0,97173.0,0.097246]
[1735829499605,0.205809,97178.0,97164.0,0.097246]
[1735829499861,0.10398632,97177.0,97167.0,0.08886176]
[1735829500040,0.10398632,97177.0,97159.0,0.205846]
[1735829500041,0.10855503,97177.0,97162.0,0.097246]
[1735829500244,0.10855503,97177.0,97162.0,0.18610776]
[1735829500475,0.205812,97176.0,97162.0,0.097246]
[1735829500606,0.205816,97174.0,97159.0,0.08886176]
[1735829500833,0.10398632,97173.0,97161.0,0.097246]
[1735829501021,0.02615972,97172.0,97157.0,0.097246]
[1735829501221,0.30980832,97171.0,97157.0,0.097246]
[1735829501427,0.31440192,97171.0,97157.0,0.097246]
[1735829501623,0.205844,97161.0,97147.0,0.08886176]
[1735829501850,0.205854,97156.0,97139.0,0.20589]
[1735829502046,0.10398632,97160.0,97137.0,0.08886176]
[1735829502047,0.205869,97149.0,97137.0,0.08886176]
[1735829502254,0.10398632,97148.0,97143.0,0.39198776]
[1735829502454,0.10851604,97148.0,97143.0,0.39198776]
[1735829502662,0.10398632,97148.0,97136.0,0.097246]
[1735829502860,0.10398632,97148.0,97138.0,0.303138]
[1735829503115,0.10398632,97148.0,97143.0,0.08886176]
[1735829503514,0.00451274,97147.0,97136.0,0.09739411]
[1735829503733,0.10398632,97146.0,97143.0,0.08886176]
[1735829503921,0.10849595,97146.0,97143.0,0.18610776]
[1735829504135,0.01611987,97162.0,97146.0,0.097246]
[1735829504380,0.10398632,97161.0,97152.0,0.303108]
[1735829504750,0.205818,97173.0,97136.0,0.00014811]
[1735829504751,0.0479,97174.0,97165.0,0.097246]
[1735829504956,0.10398632,97171.0,97165.0,0.097246]
[1735829505175,0.10852805,97171.0,97166.0,0.205833]
[1735829505506,0.10852805,97171.0,97165.0,0.097246]
[1735829505507,0.10852805,97171.0,97162.0,0.097246]
[1735829505724,0.10852805,97171.0,97141.0,0.205885]
[1735829505725,0.205824,97170.0,97150.0,0.303112]
[1735829505937,0.10398632,97169.0,97160.0,0.08886176]
[1735829506341,0.00451543,97168.0,97150.0,0.097246]
[1735829506516,0.10398632,97167.0,97155.0,0.08886176]
[1735829506720,0.31438948,97167.0,97155.0,0.08886176]
[1735829507026,0.205841,97162.0,97146.0,0.097246]
[1735829507230,0.10398632,97161.0,97150.0,0.08886176]
[1735829507472,0.10854821,97161.0,97154.0,0.097246]
[1735829507673,0.00456189,97161.0,97160.0,0.097246]
[1735829507875,0.01661023,97169.0,97153.0,0.097246]
[1735829508077,0.10398632,97168.0,97155.0,0.097246]
[1735829508305,0.10855228,97168.0,97161.0,0.097246]
[1735829508918,0.10855228,97168.0,97155.0,0.205856]
[1735829509129,0.10855228,97168.0,97161.0,0.097246]
[1735829509544,0.10855228,97168.0,97162.0,0.205841]
[1735829509751,0.10398632,97168.0,97161.0,0.097246]
[1735829510084,0.00454542,97167.0,97161.0,0.097246]
[1735829510295,0.10398632,97166.0,97159.0,0.097246]
[1735829510508,0.10398632,97166.0,97158.0,0.08886176]
[1735829510708,0.00454219,97165.0,97152.0,0.097246]
[1735829510910,0.10398632,97164.0,97161.0,0.097246]
[1735829511199,0.10853951,97164.0,97161.0,0.097246]
[1735829511419,0.10853951,97164.0,97158.0,0.08886176]
[1735829512964,0.10853951,97164.0,97149.0,0.097246]
[1735829512965,0.20584,97163.0,97149.0,0.097246]
[1735829513178,0.10853951,97164.0,97149.0,0.097246]
[1735829513179,0.10398632,97162.0,97149.0,0.18610776]
[1735829513375,0.10853464,97162.0,97149.0,0.18610776]
[1735829514269,0.205843,97161.0,97147.0,0.097246]
[1735829514498,0.10852913,97160.0,97149.0,0.097246]
[1735829514704,0.10852913,97160.0,97154.0,0.08886176]
[1735829515187,0.01611751,97159.0,97154.0,0.08886176]
[1735829515531,0.10398632,97158.0,97154.0,0.08886176]
[1735829515769,0.01611751,97159.0,97141.0,0.205885]
[1735829515770,0.01611751,97159.0,97158.0,0.18610776]
[1735829515971,0.00049211,97169.0,97166.0,0.097246]
[1735829516165,0.10398632,97168.0,97164.0,0.08886176]
[1735829516927,0.205833,97166.0,97154.0,0.08886176]
[1735829517127,0.10398632,97165.0,97148.0,0.097246]
[1735829517343,0.10398632,97165.0,97143.0,0.20588]
[1735829517344,0.205842,97162.0,97147.0,0.18610776]
[1735829517585,0.205846,97160.0,97147.0,0.18610776]
[1735829517714,0.10398632,97159.0,97153.0,0.08886176]
[1735829517916,0.205859,97154.0,97138.0,0.097246]
[1735829518127,0.205859,97154.0,97118.0,0.0805]
[1735829518128,0.00453572,97159.0,97152.0,0.097246]
[1735829518335,0.205799,97182.0,97160.0,0.18610776]
[1735829518536,0.10398632,97168.0,97167.0,0.205831]
[1735829518754,0.0001712,97197.0,97168.0,0.18610776]
[1735829519170,0.15,97194.0,97168.0,0.18610776]
[1735829520203,0.0001712,97197.0,97168.0,0.20910776]
[1735829521318,1.1e-07,97169.0,97168.0,0.66309408]
[1735829521798,1.1e-07,97169.0,97168.0,0.56309408]
[1735829522060,1.1e-07,97169.0,97168.0,0.66309408]
[1735829522548,1.1e-07,97169.0,97168.0,0.56309408]
[1735829523092,0.0001712,97197.0,97196.0,0.18610776]
[1735829523303,0.0001712,97197.0,97196.0,0.41487676]
[1735829523941,7.975e-05,97197.0,97196.0,0.41487676]
[1735829524619,7.975e-05,97197.0,97196.0,0.29463076]
[1735829524818,0.10406607,97197.0,97192.0,0.097246]
[1735829525053,0.10398632,97196.0,97190.0,0.097246]
[1735829525257,0.10865484,97196.0,97194.0,0.205774]
[1735829525460,0.00466852,97196.0,97193.0,0.097246]
[1735829525680,0.00466852,97196.0,97195.0,0.18610776]
[1735829525887,7.975e-05,97197.0,97196.0,0.08886176]
[1735829526097,0.30983307,97197.0,97188.0,0.097246]
[1735829526304,0.10398632,97196.0,97177.0,0.08886176]
[1735829526527,0.205771,97195.0,97182.0,0.08886176]
[1735829526728,0.10398632,97194.0,97175.0,0.205813]
[1735829526937,0.205786,97189.0,97178.0,0.097246]
[1735829527244,0.282888,97187.0,97172.0,0.097246]
[1735829527485,0.205822,97172.0,97147.0,0.09887576]
[1735829527686,0.10398632,97171.0,97160.0,0.097246]
[1735829527901,0.31443739,97171.0,97158.0,0.18610776]
[1735829528113,0.31443739,97171.0,97147.0,0.010014]
[1735829528114,0.52026039,97171.0,97149.0,0.097246]
[1735829528331,0.10861439,97171.0,97161.0,0.097246]
[1735829528558,0.10861439,97171.0,97147.0,0.010014]
[1735829528559,0.00462807,97171.0,97170.0,0.097246]
[1735829528772,0.10861439,97171.0,97168.0,0.18625587]
[1735829528982,0.10398632,97170.0,97168.0,0.09739411]
[1735829529194,0.0771,97187.0,97173.0,0.097246]
[1735829529402,0.10398632,97186.0,97177.0,0.08886176]
[1735829529610,0.0771,97187.0,97168.0,0.00014811]
[1735829529611,0.0771,97187.0,97186.0,0.097246]
[1735829529821,0.10398632,97187.0,97184.0,0.097246]
[1735829529996,0.08057975,97197.0,97190.0,0.097246]
[1735829530275,0.08057975,97197.0,97168.0,0.00014811]
[1735829530276,7.975e-05,97197.0,97196.0,0.097246]
[1735829530488,7.975e-05,97197.0,97196.0,0.18610776]
[1735829530702,0.10406607,97197.0,97196.0,0.18610776]
[1735829530909,0.10406607,97197.0,97169.0,0.08886176]
[1735829530910,0.24027268,97197.0,97169.0,0.08886176]
[1735829531118,0.205793,97185.0,97178.0,0.097246]
[1735829531324,0.205812,97177.0,97173.0,0.0096887]
[1735829531534,0.10398632,97176.0,97173.0,0.0096887]
[1735829531741,0.15,97174.0,97168.0,0.00023361]
[1735829531948,0.205826,97169.0,97168.0,0.00023361]
[1735829532154,0.30942042,97169.0,97168.0,0.00023361]
[1735829532599,0.43871007,97169.0,97168.0,0.00023361]
[1735829532804,0.58871007,97169.0,97168.0,0.00023361]
[1735829533215,0.60482833,97169.0,97168.0,0.00023361]
[1735829533423,0.45482833,97169.0,97168.0,0.00023361]
[1735829533627,0.24939423,97169.0,97168.0,0.00023361]
[1735829533829,0.24939423,97169.0,97168.0,0.09747961]
[1735829534040,0.12529423,97169.0,97168.0,0.09747961]
[1735829534244,0.12529423,97169.0,97168.0,0.00023361]
[1735829534860,0.19956815,97169.0,97168.0,0.00023361]
[1735829535068,0.43166815,97169.0,97168.0,0.00023361]
[1735829535279,0.35739423,97169.0,97168.0,0.00023361]
[1735829535840,0.355871,97148.0,97147.0,0.010014]
[1735829536062,0.54195732,97148.0,97147.0,0.01050611]
[1735829536264,0.54702147,97148.0,97147.0,0.01050611]
[1735829536464,0.61784549,97148.0,97147.0,0.01050611]
[1735829536693,0.61784549,97148.0,97104.0,0.205964]
[1735829536694,0.205953,97110.0,97103.0,0.097246]
[1735829536894,0.10398632,97109.0,97107.0,0.08886176]
[1735829537098,0.10398632,97109.0,97108.0,0.097246]
[1735829537530,0.205957,97108.0,97103.0,0.097246]
[1735829537762,0.205957,97108.0,97107.0,0.08886176]
[1735829537992,0.205962,97105.0,97102.0,0.00021634]
[1735829538229,0.205966,97103.0,97102.0,0.00021634]
[1735829538492,0.52802747,97103.0,97102.0,0.00021634]
[1735829538691,0.4665863,97103.0,97102.0,0.00021634]
[1735829538891,0.45584034,97103.0,97102.0,0.00021634]
[1735829539463,0.43855232,97103.0,97102.0,0.00021634]
[1735829539832,0.4665863,97103.0,97102.0,0.00021634]
[1735829540086,0.44347875,97103.0,97102.0,0.00021634]
[1735829540701,0.15851275,97103.0,97102.0,0.00021634]
[1735829540908,0.10891275,97103.0,97102.0,0.00021634]
[1735829541321,0.00492643,97103.0,97102.0,0.1863241]
[1735829541737,0.09157866,97123.0,97115.0,0.08886176]
[1735829541911,0.10398632,97122.0,97115.0,0.08886176]
[1735829542170,0.205928,97121.0,97115.0,0.08886176]
[1735829542412,0.22894666,97152.0,97125.0,0.097246]
[1735829542625,0.0784,97149.0,97142.0,0.097246]
[1735829542841,0.10398632,97144.0,97142.0,0.097246]
[1735829543048,0.10398632,97144.0,97143.0,0.097246]
[1735829543483,0.0482,97157.0,97145.0,0.097246]
[1735829543678,0.0482,97157.0,97141.0,0.08886176]
[1735829543679,0.205871,97148.0,97141.0,0.08886176]
[1735829543886,0.30986132,97147.0,97132.0,0.097246]
[1735829544111,0.20588,97144.0,97141.0,0.00021634]
[1735829544283,0.205884,97142.0,97141.0,0.00021634]
[1735829544497,0.10398632,97142.0,97141.0,0.00021634]
[1735829545425,0.0001708,97147.0,97146.0,0.097246]
[1735829545630,0.10415712,97147.0,97146.0,0.097246]
[1735829545950,0.0001708,97147.0,97146.0,0.097246]
[1735829546180,0.0001708,97147.0,97146.0,0.18610776]
[1735829546357,0.0001708,97147.0,97146.0,0.20910776]
[1735829546908,0.0001708,97147.0,97146.0,0.18610776]
[1735829547416,0.0001708,97147.0,97146.0,0.20910776]
[1735829548060,0.0001708,97147.0,97141.0,0.20610034]
[1735829548061,0.10415712,97147.0,97145.0,0.08886176]
[1735829548265,0.30986232,97146.0,97141.0,0.00021634]
[1735829548611,0.51573832,97146.0,97141.0,0.00021634]
[1735829549151,0.30986532,97144.0,97141.0,0.00021634]
[1735829549374,0.25398632,97142.0,97141.0,0.00021634]
[1735829550242,0.10398632,97142.0,97141.0,0.00021634]
[1735829550454,0.0001708,97147.0,97146.0,0.08886176]
[1735829550663,0.10415712,97147.0,97146.0,0.08886176]
[1735829550898,0.0001708,97147.0,97146.0,0.18610776]
[1735829553142,0.0162887,97147.0,97146.0,0.18610776]
[1735829553566,0.0162887,97147.0,97146.0,0.08886176]
[1735829553768,0.0162887,97147.0,97146.0,0.18610776]
[1735829554560,0.0001708,97147.0,97146.0,0.18610776]
[1735829556762,0.0001708,97147.0,97146.0,0.44009408]
[1735829556965,8e-07,97147.0,97146.0,1.28659408]
[1735829557137,0.09157866,97189.0,97188.0,0.39189376]
[1735829557340,0.09157866,97189.0,97188.0,0.29464776]
[1735829557587,0.09157866,97189.0,97188.0,0.39189376]
[1735829558151,0.000171,97196.0,97195.0,0.39187876]
[1735829558395,0.10464982,97196.0,97195.0,0.08886176]
[1735829558832,0.10464982,97196.0,97180.0,0.097246]
[1735829559130,0.10398632,97193.0,97183.0,0.097246]
[1735829559324,0.205778,97192.0,97183.0,0.097246]
[1735829559548,0.10398632,97191.0,97183.0,0.097246]
[1735829559822,0.00454189,97190.0,97183.0,0.097246]
[1735829559977,0.10398632,97189.0,97183.0,0.097246]
[1735829560189,0.1085266,97189.0,97183.0,0.097246]
[1735829561437,0.1085266,97189.0,97180.0,0.205801]
[1735829561438,0.1085266,97189.0,97186.0,0.08886176]
[1735829562259,0.10398632,97188.0,97187.0,0.097246]
[1735829562689,0.10398632,97188.0,97180.0,0.097246]
[1735829562870,0.10852498,97188.0,97180.0,0.097246]
[1735829563023,0.10852498,97188.0,97172.0,0.097246]
[1735829563230,0.01611312,97187.0,97178.0,0.097246]
[1735829563430,0.10398632,97186.0,97179.0,0.08886176]
[1735829563878,0.00452147,97185.0,97169.0,0.097246]
[1735829564096,0.00452147,97185.0,97163.0,0.205838]
[1735829564097,0.10398632,97184.0,97165.0,0.097246]
[1735829564286,0.205822,97172.0,97164.0,0.08886176]
[1735829564463,0.0453,97181.0,97173.0,0.097246]
[1735829564667,0.10398632,97181.0,97179.0,0.097246]
[1735829564864,0.205749,97206.0,97189.0,0.08886176]
[1735829565149,0.10398632,97195.0,97185.0,0.097246]
[1735829565361,0.10398632,97195.0,97155.0,0.305856]
[1735829565362,0.205783,97190.0,97184.0,0.08886176]
[1735829565563,0.10398632,97189.0,97177.0,0.08886176]
[1735829565776,0.10398632,97189.0,97183.0,0.08886176]
[1735829566129,0.30977232,97189.0,97183.0,0.08886176]
[1735829566287,0.10398632,97189.0,97183.0,0.08886176]
[1735829566633,0.10398632,97189.0,97185.0,0.097246]
[1735829566995,0.01611307,97193.0,97192.0,0.097246]
[1735829567198,0.01611307,97193.0,97192.0,0.18610776]
[1735829568958,0.205737,97212.0,97193.0,0.097246]
[1735829569154,0.10398632,97195.0,97190.0,0.097246]
[1735829569354,0.10398632,97195.0,97184.0,0.097246]
[1735829569597,0.10398632,97195.0,97183.0,0.18610776]
[1735829569858,0.10398632,97195.0,97185.0,0.18610776]
[1735829570695,0.205774,97194.0,97185.0,0.18610776]
[1735829570896,0.10398632,97193.0,97183.0,0.08886176]
[1735829571095,0.205788,97188.0,97182.0,0.08886176]
[1735829571295,0.205779,97192.0,97178.0,0.097246]
[1735829571296,0.20579,97186.0,97178.0,0.097246]
[1735829571496,0.10398632,97185.0,97180.0,0.08886176]
[1735829571722,0.10398632,97185.0,97178.0,0.097246]